bitfinex-derivatives/quotes_BTCF0:USTF0_20260111
["timestamp","ask_amount","ask_price","bid_price","bid_amount"]
[1768132356557,0.011033,90752.0,90735.0,8.5e-07]
[1768132356856,0.011035,90738.0,90735.0,8.5e-07]
[1768132357055,0.011035,90737.0,90735.0,8.5e-07]
[1768132357559,0.011035,90737.0,90730.0,0.09376]
[1768132358251,0.011035,90737.0,90731.0,0.09344238]
[1768132358854,0.06241556,90751.0,90732.0,0.06793918]
[1768132359051,0.011035,90731.0,90730.0,3.8e-07]
[1768132359245,0.09988976,90748.0,90730.0,3.8e-07]
[1768132359451,0.16230532,90748.0,90730.0,3.8e-07]
[1768132359950,0.16230532,90747.0,90730.0,3.8e-07]
[1768132362161,0.16230532,90747.0,90734.0,0.011035]
[1768132362957,0.16230532,90747.0,90730.0,3.8e-07]
[1768132363163,0.15617556,90753.0,90746.0,0.011033]
[1768132363358,0.09376,90752.0,90744.0,0.011034]
[1768132363559,0.09376,90751.0,90747.0,0.011033]
[1768132363963,0.00242378,90768.0,90747.0,0.011033]
[1768132364163,0.08550876,90765.0,90747.0,0.011033]
[1768132364365,0.09376,90764.0,90747.0,0.011033]
[1768132364559,0.17376,90764.0,90742.0,0.09344238]
[1768132365059,0.00550876,90765.0,90745.0,0.09344238]
[1768132365258,0.00242378,90768.0,90747.0,0.09344238]
[1768132365464,0.09376,90767.0,90752.0,0.011033]
[1768132366261,0.06483934,90768.0,90754.0,0.011033]
[1768132366463,0.01103,90779.0,90753.0,0.17241456]
[1768132366660,0.09376,90778.0,90754.0,0.16138156]
[1768132366860,0.09376,90778.0,90759.0,0.011032]
[1768132367252,0.02850793,90775.0,90761.0,0.011032]
[1768132368472,0.02777974,90774.0,90763.0,0.011032]
[1768132368771,0.12153974,90774.0,90763.0,0.011032]
[1768132369269,0.12153974,90774.0,90765.0,0.011031]
[1768132369469,0.12153974,90774.0,90754.0,0.15841256]
[1768132369768,0.12153974,90774.0,90763.0,0.011032]
[1768132370370,0.12153974,90774.0,90764.0,0.011031]
[1768132370572,0.12153974,90774.0,90763.0,0.011032]
[1768132371068,0.12153974,90774.0,90754.0,0.15841256]
[1768132371269,0.12153974,90774.0,90762.0,0.011032]
[1768132371773,0.13256974,90774.0,90754.0,0.15841256]
[1768132372268,0.12153974,90774.0,90754.0,0.15841256]
[1768132372469,0.12153974,90774.0,90763.0,0.011032]
[1768132373362,0.13256974,90774.0,90761.0,0.011032]
[1768132373562,0.12153974,90774.0,90761.0,0.011032]
[1768132373872,0.01103,90773.0,90758.0,0.011032]
[1768132374361,0.04507403,90773.0,90758.0,0.011032]
[1768132374667,0.011031,90771.0,90758.0,0.011032]
[1768132374864,0.03404403,90773.0,90754.0,0.15841256]
[1768132375270,0.011031,90770.0,90754.0,0.15841256]
[1768132375564,0.03404403,90773.0,90754.0,0.15841256]
[1768132376470,0.03404403,90773.0,90754.0,0.14041256]
[1768132377470,0.011031,90771.0,90757.0,0.011032]
[1768132378874,0.011031,90769.0,90755.0,0.011032]
[1768132379076,0.03404403,90773.0,90757.0,0.011032]
[1768132381771,0.03404403,90773.0,90754.0,0.14041256]
[1768132382476,0.011031,90772.0,90758.0,0.011032]
[1768132382975,0.011031,90772.0,90759.0,0.011032]
[1768132383476,0.03404403,90773.0,90760.0,0.011032]
[1768132383677,0.03404403,90773.0,90760.0,0.007032]
[1768132384276,0.03404403,90773.0,90754.0,0.14041256]
[1768132384277,0.03404403,90773.0,90762.0,0.011032]
[1768132385577,0.03404403,90773.0,90759.0,0.011032]
[1768132385779,0.04507403,90773.0,90760.0,0.011032]
[1768132386878,0.04507403,90773.0,90761.0,0.011032]
[1768132387277,0.011031,90771.0,90758.0,0.011032]
[1768132388580,0.011031,90770.0,90758.0,0.011032]
[1768132390180,0.01103,90772.0,90758.0,0.011032]
[1768132390680,0.01103,90772.0,90758.0,0.006032]
[1768132391575,0.01103,90772.0,90759.0,0.011032]
[1768132392685,0.01103,90772.0,90760.0,0.011032]
[1768132393984,0.03404403,90773.0,90760.0,0.011032]
[1768132394184,0.03404403,90773.0,90761.0,0.011032]
[1768132395882,0.03404403,90773.0,90762.0,0.011032]
[1768132397087,0.01103,90772.0,90760.0,0.011032]
[1768132397786,0.01103,90772.0,90755.0,0.09245939]
[1768132398388,0.01103,90772.0,90760.0,0.011032]
[1768132399286,0.03404403,90773.0,90760.0,0.011032]
[1768132399687,0.01103,90772.0,90758.0,0.011032]
[1768132401189,0.01103,90772.0,90759.0,0.011032]
[1768132403088,0.03404403,90773.0,90760.0,0.011032]
[1768132403791,0.04507403,90773.0,90760.0,0.011032]
[1768132404889,0.04507403,90773.0,90755.0,0.09245939]
[1768132406190,0.04507403,90773.0,90760.0,0.011032]
[1768132412000,0.04507403,90773.0,90755.0,0.09049139]
[1768132412402,0.04507403,90773.0,90760.0,0.011032]
[1768132412702,0.03404403,90773.0,90755.0,0.09049139]
[1768132413303,0.011031,90770.0,90756.0,0.011032]
[1768132413506,0.011031,90770.0,90758.0,0.011032]
[1768132414504,0.011031,90770.0,90756.0,0.011032]
[1768132414702,0.011031,90770.0,90758.0,0.011032]
[1768132415406,0.01103,90772.0,90758.0,0.011032]
[1768132417512,0.03404403,90773.0,90755.0,0.09049139]
[1768132417703,0.011031,90770.0,90758.0,0.011032]
[1768132419110,0.011031,90770.0,90755.0,0.08652339]
[1768132419509,0.011031,90770.0,90757.0,0.011032]
[1768132423114,0.011031,90770.0,90758.0,0.011032]
[1768132424312,0.011031,90770.0,90756.0,0.011032]
[1768132424914,0.011031,90770.0,90757.0,0.011032]
[1768132426116,0.011031,90770.0,90755.0,0.08155539]
[1768132426305,0.011031,90770.0,90758.0,0.011032]
[1768132427813,0.01103,90772.0,90758.0,0.011032]
[1768132431518,0.03404403,90773.0,90755.0,0.08155539]
[1768132431717,0.03404403,90773.0,90756.0,0.011032]
[1768132432112,0.011031,90766.0,90755.0,0.08155539]
[1768132432319,0.011031,90764.0,90754.0,0.06793918]
[1768132436519,0.07718664,90772.0,90754.0,0.06793918]
[1768132436918,0.011031,90764.0,90754.0,0.06793918]
[1768132437318,0.011032,90763.0,90754.0,0.06793918]
[1768132437519,0.06615664,90772.0,90754.0,0.06793918]
[1768132437923,0.06636848,90771.0,90753.0,0.011033]
[1768132438121,0.011032,90763.0,90753.0,0.011033]
[1768132438922,0.011032,90763.0,90751.0,0.104793]
[1768132439116,0.011032,90762.0,90751.0,0.09376]
[1768132439317,0.011031,90769.0,90751.0,0.18940053]
[1768132440322,0.011032,90759.0,90751.0,0.18940053]
[1768132441024,0.06636848,90771.0,90751.0,0.18940053]
[1768132441213,0.011031,90770.0,90751.0,0.27646471]
[1768132441413,0.011032,90763.0,90752.0,0.09564053]
[1768132442024,0.011031,90765.0,90752.0,0.19373771]
[1768132442223,0.011031,90765.0,90753.0,0.10667353]
[1768132443823,0.011031,90765.0,90753.0,0.19373771]
[1768132447629,0.011031,90765.0,90754.0,0.17799122]
[1768132448929,0.011031,90768.0,90754.0,0.18902422]
[1768132449522,0.011031,90767.0,90754.0,0.18902422]
[1768132450828,0.06962047,90774.0,90754.0,0.17799122]
[1768132451222,0.06962047,90774.0,90754.0,0.18902422]
[1768132451418,0.011031,90768.0,90754.0,0.18902422]
[1768132451726,0.011031,90767.0,90754.0,0.18902422]
[1768132453032,0.011031,90767.0,90755.0,0.09560496]
[1768132453331,0.011031,90767.0,90755.0,0.07260496]
[1768132453526,0.011031,90765.0,90755.0,0.07260496]
[1768132454634,0.011031,90765.0,90755.0,0.15933142]
[1768132454932,0.16338047,90774.0,90755.0,0.15933142]
[1768132455330,0.011031,90772.0,90755.0,0.15933142]
[1768132455932,0.011032,90764.0,90755.0,0.15933142]
[1768132459837,0.011032,90764.0,90756.0,0.09560496]
[1768132460337,0.011032,90764.0,90756.0,0.06660496]
[1768132460833,0.011032,90763.0,90756.0,0.06660496]
[1768132464840,0.011032,90763.0,90756.0,0.15333142]
[1768132467440,0.011032,90763.0,90756.0,0.12633142]
[1768132468442,0.011031,90772.0,90756.0,0.12633142]
[1768132468940,0.011031,90766.0,90756.0,0.12633142]
[1768132472442,0.011031,90772.0,90756.0,0.12633142]
[1768132472646,0.011031,90764.0,90756.0,0.12633142]
[1768132474549,0.011031,90764.0,90756.0,0.10233142]
[1768132476255,0.011031,90764.0,90756.0,0.08672646]
[1768132476550,0.011031,90764.0,90757.0,0.09003738]
[1768132476760,0.011031,90764.0,90757.0,0.17602003]
[1768132481567,0.011031,90764.0,90757.0,0.14702003]
[1768132482066,0.011031,90764.0,90758.0,0.08598265]
[1768132486869,0.011032,90763.0,90758.0,0.08598265]
[1768132488674,0.011032,90763.0,90758.0,0.06098265]
[1768132488876,0.011032,90763.0,90757.0,0.06103738]
[1768132489576,0.011031,90771.0,90757.0,0.06103738]
[1768132489774,0.011031,90770.0,90757.0,0.06103738]
[1768132490775,0.011031,90770.0,90757.0,0.14702003]
[1768132491374,0.011031,90764.0,90757.0,0.14702003]
[1768132492575,0.011031,90764.0,90758.0,0.09003738]
[1768132494576,0.011031,90764.0,90759.0,0.09003738]
[1768132495079,0.011031,90766.0,90759.0,0.09003738]
[1768132495471,0.011031,90764.0,90760.0,0.08598265]
[1768132495775,0.011031,90764.0,90760.0,0.07098265]
[1768132500975,0.011031,90766.0,90760.0,0.07098265]
[1768132501176,0.011032,90763.0,90760.0,6.5e-07]
[1768132501777,0.011031,90765.0,90760.0,6.5e-07]
[1768132502683,0.011031,90765.0,90759.0,0.09003738]
[1768132502879,0.011031,90765.0,90759.0,0.07703738]
[1768132504283,0.011031,90764.0,90759.0,3.8e-07]
[1768132506086,0.011031,90766.0,90759.0,3.8e-07]
[1768132507286,0.011031,90765.0,90759.0,3.8e-07]
[1768132507785,1.59376,90774.0,90756.0,0.09328798]
[1768132508085,0.011032,90763.0,90756.0,0.09328798]
[1768132509388,0.011031,90766.0,90756.0,0.09328798]
[1768132509686,0.011031,90764.0,90756.0,0.09328798]
[1768132509986,0.011031,90766.0,90756.0,0.09328798]
[1768132510187,0.011031,90766.0,90756.0,0.06528798]
[1768132511283,1.59376,90774.0,90756.0,0.08814908]
[1768132511885,0.011031,90767.0,90756.0,0.08814908]
[1768132512185,0.011031,90767.0,90757.0,0.09328798]
[1768132515990,0.011031,90766.0,90757.0,0.09328798]
[1768132517289,0.011031,90766.0,90757.0,0.06428798]
[1768132518893,0.010531,90766.0,90757.0,0.06428798]
[1768132522896,0.011031,90765.0,90757.0,0.06428798]
[1768132524398,0.011031,90765.0,90757.0,0.03828798]
[1768132531503,0.011031,90765.0,90757.0,0.01528798]
[1768132538619,0.011031,90765.0,90756.0,0.08243706]
[1768132542120,0.011031,90765.0,90756.0,0.17369864]
[1768132545721,0.011031,90765.0,90756.0,0.14469864]
[1768132552823,0.011031,90765.0,90756.0,0.11869864]
[1768132559832,0.011031,90765.0,90756.0,0.09469864]
[1768132563636,0.011031,90772.0,90756.0,0.09469864]
[1768132564437,0.011031,90765.0,90756.0,0.09469864]
[1768132566933,0.011031,90765.0,90756.0,0.07369864]
[1768132570835,0.00347871,90765.0,90756.0,0.07369864]
[1768132571040,0.011031,90766.0,90756.0,0.07369864]
[1768132572634,0.011031,90772.0,90756.0,0.07369864]
[1768132572831,0.011031,90766.0,90756.0,0.07369864]
[1768132573035,0.011031,90772.0,90756.0,0.07369864]
[1768132573236,0.00727953,90772.0,90756.0,0.07369864]
[1768132573537,0.011031,90766.0,90756.0,0.07369864]
[1768132573738,0.00727953,90772.0,90756.0,0.07369864]
[1768132574042,0.09000853,90774.0,90761.0,0.09952921]
[1768132574232,0.10103853,90774.0,90762.0,0.11056121]
[1768132574440,0.01103,90776.0,90766.0,0.09952921]
[1768132574639,0.09376,90781.0,90766.0,0.09952921]
[1768132574950,0.17376,90781.0,90766.0,0.06952921]
[1768132575245,0.01103,90775.0,90766.0,0.06952921]
[1768132576948,0.01103,90774.0,90766.0,0.06952921]
[1768132578949,0.01103,90772.0,90766.0,0.06952921]
[1768132580246,0.09376,90781.0,90766.0,0.06952921]
[1768132580453,0.01103,90774.0,90766.0,0.06952921]
[1768132581450,0.09376,90781.0,90766.0,0.06952921]
[1768132581651,0.16376,90781.0,90766.0,0.06952921]
[1768132581953,0.16376,90781.0,90766.0,0.04152921]
[1768132582156,0.01103,90773.0,90766.0,0.04152921]
[1768132585054,0.01103,90774.0,90766.0,0.04152921]
[1768132585456,0.01103,90776.0,90766.0,0.04152921]
[1768132586857,0.09376,90781.0,90766.0,0.04152921]
[1768132587056,0.16376,90781.0,90766.0,0.04152921]
[1768132587360,0.01103,90774.0,90766.0,0.04152921]
[1768132588957,0.01103,90774.0,90766.0,0.01752921]
[1768132589158,0.09376,90781.0,90766.0,0.01752921]
[1768132589456,0.01103,90777.0,90766.0,0.01752921]
[1768132590957,0.09376,90781.0,90766.0,0.01752921]
[1768132591257,0.17376,90781.0,90766.0,0.01752921]
[1768132592462,0.01103,90775.0,90766.0,0.01752921]
[1768132596061,0.01103,90775.0,90766.0,0.00452921]
[1768132596465,0.01103,90775.0,90765.0,0.09558827]
[1768132596662,0.09376,90781.0,90765.0,0.09558827]
[1768132596862,0.13376,90781.0,90765.0,0.09558827]
[1768132598461,0.01103,90776.0,90765.0,0.09558827]
[1768132598662,0.09376,90781.0,90765.0,0.09558827]
[1768132600078,0.01103,90775.0,90765.0,0.09558827]
[1768132600272,0.09376,90781.0,90765.0,0.09558827]
[1768132602378,0.01103,90776.0,90765.0,0.09558827]
[1768132603179,0.01103,90775.0,90765.0,0.07458827]
[1768132603879,0.09376,90781.0,90765.0,0.07458827]
[1768132604077,0.09376,90781.0,90763.0,0.05158041]
[1768132604278,0.09376,90781.0,90763.0,0.06261141]
[1768132605381,0.01103,90776.0,90763.0,0.06261141]
[1768132606881,0.01103,90776.0,90763.0,0.05158041]
[1768132607880,0.01103,90773.0,90763.0,0.05158041]
[1768132608481,0.01103,90772.0,90763.0,0.05158041]
[1768132610386,0.01103,90772.0,90763.0,0.02558041]
[1768132613183,0.01103,90774.0,90763.0,0.02558041]
[1768132616588,0.011031,90772.0,90763.0,0.02558041]
[1768132617287,0.011031,90772.0,90763.0,0.00258041]
[1768132620585,0.011031,90771.0,90760.0,0.011032]
[1768132620997,0.011031,90771.0,90759.0,0.00163161]
[1768132621796,0.011031,90770.0,90759.0,0.00163161]
[1768132622092,0.011031,90770.0,90758.0,0.104792]
[1768132622586,0.19075163,90777.0,90758.0,0.09376]
[1768132623595,0.011031,90771.0,90758.0,0.104792]
[1768132624791,0.19075163,90777.0,90758.0,0.09376]
[1768132625186,0.011031,90769.0,90758.0,0.09376]
[1768132625394,0.011031,90769.0,90758.0,0.104792]
[1768132625798,0.011031,90770.0,90758.0,0.09376]
[1768132626191,0.011031,90769.0,90758.0,0.09376]
[1768132630100,0.011031,90769.0,90758.0,0.09497646]
[1768132631000,0.011031,90771.0,90758.0,0.10600846]
[1768132631300,0.011031,90771.0,90759.0,0.011032]
[1768132633304,0.011031,90771.0,90760.0,0.011032]
[1768132634404,0.011031,90771.0,90758.0,0.07500846]
[1768132635405,0.011031,90771.0,90760.0,0.011032]
[1768132636904,0.19075163,90777.0,90758.0,0.07500846]
[1768132637105,0.01103,90773.0,90761.0,0.011032]
[1768132637407,0.011031,90771.0,90758.0,0.08604046]
[1768132638618,0.011031,90771.0,90759.0,0.011032]
[1768132643213,0.19075163,90777.0,90761.0,0.011032]
[1768132645417,0.01103,90773.0,90761.0,0.011032]
[1768132646514,0.01103,90773.0,90758.0,0.06604046]
[1768132647316,0.01103,90776.0,90758.0,0.06604046]
[1768132647513,0.01103,90776.0,90765.0,0.011031]
[1768132648019,0.01103,90776.0,90763.0,0.011032]
[1768132648717,0.01103,90775.0,90763.0,0.011032]
[1768132649417,0.01103,90774.0,90760.0,0.011032]
[1768132651725,0.01103,90774.0,90762.0,0.011032]
[1768132653528,0.01103,90776.0,90763.0,0.011031]
[1768132653821,0.01103,90776.0,90758.0,0.04907146]
[1768132654120,0.01103,90775.0,90758.0,0.04907146]
[1768132655423,0.01103,90775.0,90762.0,0.011032]
[1768132659326,0.19075163,90777.0,90765.0,0.011031]
[1768132659527,0.19075163,90777.0,90766.0,0.011031]
[1768132660027,0.01103,90776.0,90764.0,0.011031]
[1768132660729,0.01103,90776.0,90758.0,0.03310246]
[1768132661519,0.01103,90776.0,90764.0,0.011031]
[1768132662131,0.19075163,90777.0,90764.0,0.011031]
[1768132663535,0.19075163,90777.0,90765.0,0.011031]
[1768132663736,0.19075163,90777.0,90766.0,0.011031]
[1768132664533,0.00727749,90780.0,90759.0,0.1064752]
[1768132664830,0.19969718,90780.0,90766.0,0.011031]
[1768132665230,0.19241969,90779.0,90767.0,0.011031]
[1768132666528,0.20344969,90779.0,90759.0,0.1064752]
[1768132667232,0.09330125,90778.0,90759.0,0.1064752]
[1768132667532,0.09330125,90778.0,90765.0,0.011031]
[1768132668033,0.19241969,90778.0,90759.0,0.1015062]
[1768132668533,0.01103,90776.0,90762.0,0.011032]
[1768132668934,0.01103,90776.0,90763.0,0.011031]
[1768132671046,0.20344969,90778.0,90763.0,0.011031]
[1768132671437,0.20344969,90778.0,90759.0,0.0904742]
[1768132671639,0.20344969,90778.0,90764.0,0.011031]
[1768132674036,0.20344969,90778.0,90765.0,0.011031]
[1768132674938,0.20344969,90778.0,90765.0,0.005031]
[1768132675337,0.19241969,90778.0,90765.0,0.005031]
[1768132675635,0.19241969,90777.0,90765.0,0.005031]
[1768132677833,0.19241969,90777.0,90766.0,0.011031]
[1768132680740,0.01103,90776.0,90763.0,0.011032]
[1768132681038,0.20344969,90776.0,90763.0,0.011032]
[1768132681342,0.19241969,90776.0,90763.0,0.011032]
[1768132681542,0.19241969,90776.0,90764.0,0.011031]
[1768132682446,0.19241969,90776.0,90765.0,0.011031]
[1768132684641,0.09911844,90776.0,90766.0,0.011031]
[1768132686967,0.09911844,90776.0,90758.0,0.03211814]
[1768132687463,0.09911844,90776.0,90766.0,0.011031]
[1768132688364,0.09911844,90776.0,90758.0,0.03211814]
[1768132689664,0.19896852,90776.0,90758.0,0.03211814]
[1768132690167,0.19896852,90776.0,90766.0,0.011031]
[1768132692370,0.19896852,90776.0,90758.0,0.03211814]
[1768132693469,0.19896852,90776.0,90766.0,0.011031]
[1768132694471,0.09218179,90775.0,90758.0,0.031886]
[1768132694671,0.08843069,90775.0,90758.0,0.031886]
[1768132694869,0.18828077,90775.0,90758.0,0.031886]
[1768132695479,0.18828077,90775.0,90766.0,0.011031]
[1768132695663,0.18452967,90775.0,90766.0,0.011031]
[1768132697278,0.18077857,90775.0,90766.0,0.011031]
[1768132697574,0.16952527,90775.0,90766.0,0.011031]
[1768132697774,0.16202307,90775.0,90766.0,0.011031]
[1768132698075,0.15076977,90775.0,90766.0,0.011031]
[1768132698274,0.14326757,90775.0,90766.0,0.011031]
[1768132698475,0.13576537,90775.0,90766.0,0.011031]
[1768132698775,0.13201427,90775.0,90766.0,0.011031]
[1768132698976,0.09985008,90774.0,90766.0,0.011031]
[1768132699776,0.09985008,90774.0,90758.0,0.15045029]
[1768132700075,0.08859678,90774.0,90758.0,0.15045029]
[1768132700276,0.08109458,90774.0,90758.0,0.15045029]
[1768132700475,0.07359238,90774.0,90758.0,0.15045029]
[1768132700666,0.06609018,90774.0,90758.0,0.15045029]
[1768132700863,0.05858798,90774.0,90758.0,0.15045029]
[1768132701376,0.05858798,90774.0,90766.0,0.011031]
[1768132701577,0.05483688,90774.0,90766.0,0.011031]
[1768132701875,0.05108578,90774.0,90766.0,0.011031]
[1768132702177,0.04733468,90774.0,90766.0,0.011031]
[1768132703283,0.04358358,90774.0,90766.0,0.011031]
[1768132703580,0.03233028,90774.0,90766.0,0.011031]
[1768132703767,0.02482808,90774.0,90766.0,0.011031]
[1768132703970,0.01732588,90774.0,90766.0,0.011031]
[1768132704179,0.00982368,90774.0,90766.0,0.011031]
[1768132704378,0.00232148,90774.0,90766.0,0.011031]
[1768132704581,0.02698347,90775.0,90766.0,0.011031]
[1768132704877,0.01573017,90775.0,90766.0,0.011031]
[1768132705077,0.00822797,90775.0,90766.0,0.011031]
[1768132705279,0.00072577,90775.0,90766.0,0.011031]
[1768132705480,0.09376,90781.0,90766.0,0.011031]
[1768132705682,0.0900089,90781.0,90766.0,0.011031]
[1768132706387,0.01103,90780.0,90766.0,0.011031]
[1768132706679,0.09985008,90779.0,90766.0,0.011031]
[1768132706880,0.09985008,90779.0,90759.0,0.008063]
[1768132707379,0.09218179,90778.0,90766.0,0.011031]
[1768132707581,0.09985008,90777.0,90766.0,0.011031]
[1768132708282,0.09218179,90776.0,90766.0,0.011031]
[1768132710084,0.09985008,90775.0,90766.0,0.011031]
[1768132712791,0.09985008,90775.0,90758.0,0.15045029]
[1768132714392,0.09985008,90775.0,90765.0,0.011031]
[1768132715693,0.09985008,90775.0,90758.0,0.15045029]
[1768132716393,0.09985008,90775.0,90764.0,0.011031]
[1768132717283,0.19182721,90775.0,90764.0,0.011031]
[1768132717894,0.09222382,90774.0,90764.0,0.011031]
[1768132724002,0.18420095,90771.0,90758.0,0.15045029]
[1768132724200,0.09222382,90762.0,90738.0,0.09575173]
[1768132724499,0.09222382,90758.0,90744.0,0.011034]
[1768132724703,0.09222382,90755.0,90743.0,0.09376]
[1768132724896,0.18420095,90753.0,90743.0,0.09376]
[1768132725100,0.09222382,90752.0,90743.0,0.09376]
[1768132725497,0.09222382,90752.0,90739.0,0.011034]
[1768132725804,0.09222382,90751.0,90741.0,0.09376]
[1768132729320,0.09197713,90752.0,90741.0,0.09376]
[1768132729522,0.18420095,90752.0,90741.0,0.104794]
[1768132730221,0.18420095,90752.0,90741.0,0.09376]
[1768132731218,0.18420095,90752.0,90741.0,0.104794]
[1768132733321,0.18420095,90752.0,90743.0,0.011034]
[1768132736416,0.18420095,90752.0,90741.0,0.09376]
[1768132736621,0.09222382,90751.0,90741.0,0.09376]
[1768132737028,0.09222382,90751.0,90743.0,0.011034]
[1768132737418,0.09222382,90751.0,90744.0,0.011034]
[1768132737620,0.08847186,90751.0,90744.0,0.011034]
[1768132738022,0.0847199,90751.0,90744.0,0.011034]
[1768132738222,0.0847199,90751.0,90741.0,0.09376]
[1768132738624,0.08096794,90751.0,90741.0,0.09376]
[1768132738825,0.08096794,90751.0,90744.0,0.011034]
[1768132739328,0.07721598,90751.0,90744.0,0.011034]
[1768132739829,0.07346402,90751.0,90744.0,0.011034]
[1768132740130,0.06220814,90751.0,90744.0,0.011034]
[1768132740329,0.09197713,90752.0,90741.0,0.09376]
[1768132740530,0.08447321,90752.0,90744.0,0.011034]
[1768132740729,0.07696929,90752.0,90744.0,0.011034]
[1768132740930,0.06195337,90752.0,90745.0,0.011034]
[1768132741126,0.05820141,90752.0,90745.0,0.011034]
[1768132741730,0.05820141,90752.0,90746.0,0.011033]
[1768132741931,0.011031,90764.0,90747.0,0.011033]
[1768132742132,0.00550876,90765.0,90748.0,0.011033]
[1768132742429,0.09222382,90764.0,90748.0,0.011033]
[1768132743032,0.09197713,90763.0,90748.0,0.011033]
[1768132743431,0.09222382,90762.0,90748.0,0.011033]
[1768132744233,0.09834654,90761.0,90748.0,0.011033]
[1768132744636,0.09258722,90760.0,90748.0,0.011033]
[1768132744928,0.09258722,90758.0,90741.0,0.09376]
[1768132745132,0.09258722,90757.0,90748.0,0.011033]
[1768132745830,0.09258722,90756.0,90748.0,0.011033]
[1768132746035,0.09258722,90756.0,90741.0,0.09376]
[1768132746232,0.09258722,90756.0,90748.0,0.011033]
[1768132747136,0.09258722,90756.0,90746.0,0.011033]
[1768132748237,0.09776438,90755.0,90746.0,0.011033]
[1768132755938,0.09776438,90755.0,90747.0,0.011033]
[1768132759448,0.09776438,90754.0,90747.0,0.011033]
[1768132778874,0.09776438,90754.0,90740.0,0.09376]
[1768132779768,0.09776438,90754.0,90746.0,0.011034]
[1768132780165,0.09776438,90754.0,90743.0,0.011034]
[1768132780668,0.09776438,90754.0,90745.0,0.011034]
[1768132784167,0.09776438,90754.0,90740.0,0.09376]
[1768132785473,0.09776438,90754.0,90747.0,0.011033]
[1768132787767,0.090147,90753.0,90749.0,0.011033]
[1768132793278,0.090147,90753.0,90740.0,0.09376]
[1768132793873,0.090147,90753.0,90749.0,0.011033]
[1768132795378,0.090147,90753.0,90747.0,0.011033]
[1768132795973,0.090147,90753.0,90748.0,0.011033]
[1768132797584,0.00250755,90785.0,90761.0,0.19163747]
[1768132797780,0.00250755,90785.0,90771.0,0.19163747]
[1768132797973,0.00250755,90785.0,90768.0,0.011031]
[1768132798281,3.5e-07,90783.0,90768.0,0.011031]
[1768132798481,3.5e-07,90783.0,90779.0,0.01103]
[1768132798683,3.5e-07,90783.0,90765.0,0.09376]
[1768132799182,3.5e-07,90783.0,90765.0,0.19026857]
[1768132799976,0.00250731,90805.0,90783.0,0.09650857]
[1768132800183,0.00250731,90805.0,90787.0,0.011029]
[1768132800374,0.18831035,90803.0,90781.0,0.09376]
[1768132800574,0.09816335,90798.0,90781.0,0.09376]
[1768132800783,0.09816335,90797.0,90781.0,0.09376]
[1768132801276,3.5e-07,90798.0,90781.0,0.09376]
[1768132801482,3.5e-07,90798.0,90789.0,0.011028]
[1768132801683,3.5e-07,90798.0,90776.0,0.09650857]
[1768132801879,3.5e-07,90798.0,90776.0,0.19026857]
[1768132802285,3.5e-07,90798.0,90789.0,0.011028]
[1768132803175,0.09816335,90797.0,90777.0,0.01103]
[1768132803374,0.09816335,90797.0,90790.0,0.011028]
[1768132803673,3.5e-07,90797.0,90792.0,0.011028]
[1768132803879,3.5e-07,90797.0,90794.0,0.011028]
[1768132804376,3.5e-07,90798.0,90794.0,0.011028]
[1768132804586,0.09626731,90805.0,90794.0,0.011028]
[1768132804885,0.09626731,90805.0,90790.0,0.011028]
[1768132806577,0.0903755,90802.0,90778.0,0.09445652]
[1768132806778,0.0903755,90800.0,90785.0,0.011029]
[1768132808583,0.0903755,90800.0,90778.0,0.09445652]
[1768132808584,0.10104626,90799.0,90782.0,0.011029]
[1768132808884,0.09001926,90797.0,90782.0,0.011029]
[1768132809285,0.09001926,90797.0,90784.0,0.011029]
[1768132809678,0.09001926,90797.0,90778.0,0.10548652]
[1768132809877,0.09001926,90796.0,90780.0,0.011029]
[1768132810481,0.18166873,90790.0,90776.0,0.09376]
[1768132810786,0.09001926,90789.0,90776.0,0.09376]
[1768132816895,0.011028,90794.0,90776.0,0.09376]
[1768132817092,0.09001926,90793.0,90782.0,0.011029]
[1768132817488,0.09001926,90793.0,90779.0,0.011029]
[1768132818193,0.09001926,90793.0,90780.0,0.011029]
[1768132821387,0.09001926,90793.0,90779.0,0.011029]
[1768132821591,0.09001926,90793.0,90780.0,0.011029]
[1768132824397,0.09001926,90793.0,90781.0,0.011029]
[1768132825593,0.09001926,90793.0,90776.0,0.09376]
[1768132825800,0.09001926,90793.0,90777.0,0.09280758]
[1768132826188,0.09001926,90793.0,90783.0,0.011029]
[1768132827704,0.09372,90795.0,90784.0,0.011029]
[1768132828703,0.09372,90795.0,90785.0,0.011029]
[1768132828900,0.09372,90795.0,90787.0,0.011029]
[1768132829405,0.09372,90795.0,90788.0,0.011028]
[1768132832206,0.09372,90795.0,90779.0,0.09280758]
[1768132832405,0.18373926,90795.0,90785.0,0.011029]
[1768132834005,0.09962363,90794.0,90785.0,0.011029]
[1768132835806,0.09372,90795.0,90785.0,0.011029]
[1768132836105,0.09372,90795.0,90779.0,0.09280758]
[1768132836508,0.06944899,90795.0,90779.0,0.09280758]
[1768132836719,0.09962363,90791.0,90776.0,0.09376]
[1768132837008,0.09962363,90790.0,90776.0,0.09376]
[1768132837509,0.09962363,90790.0,90782.0,0.011029]
[1768132838408,0.09962363,90790.0,90776.0,0.09376]
[1768132838810,0.09962363,90790.0,90782.0,0.011029]
[1768132839106,0.09962363,90790.0,90776.0,0.09376]
[1768132839512,0.09962363,90790.0,90783.0,0.011029]
[1768132839816,0.09962363,90790.0,90781.0,0.011029]
[1768132840310,0.09962363,90790.0,90783.0,0.011029]
[1768132840512,0.09962363,90790.0,90774.0,0.01103]
[1768132840810,0.09962363,90790.0,90783.0,0.011029]
[1768132841105,0.09962363,90790.0,90775.0,0.01103]
[1768132841813,0.09962363,90790.0,90783.0,0.011029]
[1768132842008,0.09962363,90790.0,90775.0,0.01103]
[1768132842215,0.09372,90795.0,90787.0,0.011029]
[1768132842716,0.09372,90795.0,90779.0,0.09567378]
[1768132843316,0.09372,90795.0,90785.0,0.011029]
[1768132845415,0.09372,90795.0,90786.0,0.011029]
[1768132845618,0.09372,90795.0,90787.0,0.011029]
[1768132846220,0.09372,90795.0,90788.0,0.011028]
[1768132847615,0.05291493,90796.0,90788.0,0.011028]
[1768132848120,0.05291493,90796.0,90789.0,0.011028]
[1768132848709,0.05291493,90796.0,90780.0,0.011029]
[1768132850518,0.05291493,90796.0,90787.0,0.011029]